[Event "*** SCC Grand Prix: Titled Tuesday Blitz"]
[Site "Chess.com"]
[Date "2020.06.02"]
[Round "8"]
[White "Angel_Hranitel_37"]
[Black "yobdc"]
[Result "1-0"]
[WhiteElo "2413"]
[BlackElo "2205"]
[TimeControl "180+1"]
[EndTime "11:38:22 PDT"]
[Termination "Angel_Hranitel_37 won on time"]

1. d4 {[%clk 0:03:00.9]} 1... d5 {[%clk 0:02:59.7]} 2. c4 {[%clk 0:02:58.7]}
2... e6 {[%clk 0:03:00]} 3. Nf3 {[%clk 0:02:58]} 3... Be7 {[%clk 0:03:00.3]} 4.
g3 {[%clk 0:02:58]} 4... Nf6 {[%clk 0:03:00.5]} 5. Bg2 {[%clk 0:02:58.9]} 5...
O-O {[%clk 0:03:00.7]} 6. O-O {[%clk 0:02:59.8]} 6... dxc4 {[%clk 0:03:00.9]} 7.
Ne5 {[%clk 0:02:59.7]} 7... c5 {[%clk 0:02:59.2]} 8. dxc5 {[%clk 0:02:58.8]}
8... Qc7 {[%clk 0:02:58.4]} 9. Nxc4 {[%clk 0:02:57.8]} 9... Qxc5 {[%clk
0:02:52.5]} 10. b3 {[%clk 0:02:58.1]} 10... Nc6 {[%clk 0:02:49.8]} 11. Nbd2
{[%clk 0:02:47.2]} 11... Rd8 {[%clk 0:02:38]} 12. Ba3 {[%clk 0:02:47.2]} 12...
Qh5 {[%clk 0:02:30.4]} 13. Bxe7 {[%clk 0:02:34.9]} 13... Nxe7 {[%clk 0:02:31.3]}
14. e4 {[%clk 0:02:34]} 14... Qxd1 {[%clk 0:02:28.4]} 15. Rfxd1 {[%clk
0:02:34.9]} 15... Bd7 {[%clk 0:02:25.6]} 16. e5 {[%clk 0:02:35.2]} 16... Nfd5
{[%clk 0:02:25.5]} 17. Ne4 {[%clk 0:02:34.6]} 17... Bc6 {[%clk 0:02:15.7]} 18.
Na5 {[%clk 0:02:21.4]} 18... Nb4 {[%clk 0:01:48.2]} 19. Nxc6 {[%clk 0:02:11.1]}
19... Nexc6 {[%clk 0:01:39.2]} 20. f4 {[%clk 0:01:55.1]} 20... Nc2 {[%clk
0:01:34]} 21. Rac1 {[%clk 0:01:50.7]} 21... Ne3 {[%clk 0:01:32.5]} 22. Rxd8+
{[%clk 0:01:48.9]} 22... Rxd8 {[%clk 0:01:33.4]} 23. Nd6 {[%clk 0:01:48.6]}
23... Nxg2 {[%clk 0:01:25.9]} 24. Kxg2 {[%clk 0:01:49.5]} 24... f6 {[%clk
0:01:18.1]} 25. Nxb7 {[%clk 0:01:44.5]} 25... Rd2+ {[%clk 0:01:17.2]} 26. Kf3
{[%clk 0:01:22.6]} 26... Ne7 {[%clk 0:00:50]} 27. Rc7 {[%clk 0:01:15.6]} 27...
Nd5 {[%clk 0:00:47.6]} 28. Rc6 {[%clk 0:00:46.8]} 28... fxe5 {[%clk 0:00:45.1]}
29. fxe5 {[%clk 0:00:47.7]} 29... Rxh2 {[%clk 0:00:30.5]} 30. Rxe6 {[%clk
0:00:29.3]} 30... Rxa2 {[%clk 0:00:28.8]} 31. Nd6 {[%clk 0:00:21]} 31... g6
{[%clk 0:00:17.4]} 32. Re8+ {[%clk 0:00:21.2]} 32... Kg7 {[%clk 0:00:17.7]} 33.
e6 {[%clk 0:00:17.3]} 33... Nf6 {[%clk 0:00:13.9]} 34. Re7+ {[%clk 0:00:16.4]}
34... Kh6 {[%clk 0:00:12.5]} 35. Rf7 {[%clk 0:00:16.8]} 35... Nd5 {[%clk
0:00:12.1]} 36. e7 {[%clk 0:00:17.1]} 36... Nxe7 {[%clk 0:00:11.7]} 37. Rxe7
{[%clk 0:00:18]} 37... Rb2 {[%clk 0:00:11.5]} 38. Rb7 {[%clk 0:00:16.4]} 38...
Kg5 {[%clk 0:00:11.2]} 39. Nc4 {[%clk 0:00:15.7]} 39... Rb1 {[%clk 0:00:11.1]}
40. Nd2 {[%clk 0:00:15.3]} 40... Rb2 {[%clk 0:00:10.9]} 41. Ne4+ {[%clk
0:00:15.7]} 41... Kf5 {[%clk 0:00:10.8]} 42. Nc5 {[%clk 0:00:16]} 42... h5
{[%clk 0:00:10.4]} 43. Rxa7 {[%clk 0:00:16.1]} 43... g5 {[%clk 0:00:10.4]} 44.
Rf7+ {[%clk 0:00:13.7]} 44... Kg6 {[%clk 0:00:10.2]} 45. Rd7 {[%clk 0:00:13.3]}
45... g4+ {[%clk 0:00:10.4]} 46. Ke3 {[%clk 0:00:13.1]} 46... Rg2 {[%clk
0:00:10.2]} 47. Ne4 {[%clk 0:00:11.1]} 47... Rb2 {[%clk 0:00:10.1]} 48. Rd3
{[%clk 0:00:10.5]} 48... Kf5 {[%clk 0:00:09.7]} 49. Nd2 {[%clk 0:00:10.7]} 49...
Ra2 {[%clk 0:00:06.1]} 50. Rd5+ {[%clk 0:00:10.9]} 50... Kg6 {[%clk 0:00:05.9]}
51. b4 {[%clk 0:00:09.9]} 51... Rb2 {[%clk 0:00:05.8]} 52. Rd4 {[%clk
0:00:10.3]} 52... Kf5 {[%clk 0:00:05.1]} 53. Rd5+ {[%clk 0:00:09.8]} 53... Ke6
{[%clk 0:00:05.2]} 54. Rxh5 {[%clk 0:00:10]} 54... Rxb4 {[%clk 0:00:05.5]} 55.
Ne4 {[%clk 0:00:10.1]} 55... Kf7 {[%clk 0:00:04.4]} 56. Rg5 {[%clk 0:00:09.6]}
56... Rb3+ {[%clk 0:00:03.8]} 57. Kf4 {[%clk 0:00:08.7]} 57... Rb4 {[%clk
0:00:04.3]} 58. Rxg4 {[%clk 0:00:08.3]} 58... Ra4 {[%clk 0:00:04.4]} 59. Rh4
{[%clk 0:00:08.7]} 59... Kg6 {[%clk 0:00:04.2]} 60. g4 {[%clk 0:00:08.9]} 60...
Rb4 {[%clk 0:00:04.6]} 61. g5 {[%clk 0:00:08.5]} 61... Ra4 {[%clk 0:00:05]} 62.
Rh6+ {[%clk 0:00:08.7]} 62... Kg7 {[%clk 0:00:05]} 63. Re6 {[%clk 0:00:09.1]}
63... Rb4 {[%clk 0:00:05.2]} 64. Kf5 {[%clk 0:00:09.2]} 64... Rb5+ {[%clk
0:00:05.2]} 65. Re5 {[%clk 0:00:09.7]} 65... Rb4 {[%clk 0:00:04.8]} 66. Re7+
{[%clk 0:00:09.8]} 66... Kg8 {[%clk 0:00:04.9]} 67. Nf6+ {[%clk 0:00:08.2]}
67... Kf8 {[%clk 0:00:05.2]} 68. Ra7 {[%clk 0:00:08.3]} 68... Rb5+ {[%clk
0:00:03.4]} 69. Kf4 {[%clk 0:00:03.1]} 69... Rf5+ {[%clk 0:00:03.5]} 70. Ke4
{[%clk 0:00:03]} 70... Re5+ {[%clk 0:00:02.1]} 71. Kd4 {[%clk 0:00:03.4]} 71...
Ra5 {[%clk 0:00:01.3]} 72. g6 {[%clk 0:00:03]} 1-0

[Event "*** SCC Grand Prix: Titled Tuesday Blitz"]
[Site "Chess.com"]
[Date "2020.06.02"]
[Round "8"]
[White "icychess54"]
[Black "MashaFromRussia"]
[Result "0-1"]
[WhiteElo "2241"]
[BlackElo "2392"]
[TimeControl "180+1"]
[EndTime "11:38:27 PDT"]
[Termination "MashaFromRussia won by checkmate"]

1. c4 {[%clk 0:01:35.6]} 1... e5 {[%clk 0:02:59.2]} 2. Nc3 {[%clk 0:01:32.4]}
2... d6 {[%clk 0:02:58.7]} 3. Nf3 {[%clk 0:01:32.5]} 3... f5 {[%clk 0:02:58.4]}
4. e3 {[%clk 0:01:32.9]} 4... Nf6 {[%clk 0:02:58.1]} 5. Be2 {[%clk 0:01:33.3]}
5... g6 {[%clk 0:02:58.2]} 6. O-O {[%clk 0:01:33.5]} 6... Bg7 {[%clk 0:02:58.6]}
7. b3 {[%clk 0:01:33.7]} 7... O-O {[%clk 0:02:58.9]} 8. Bb2 {[%clk 0:01:34.2]}
8... Nc6 {[%clk 0:02:58.9]} 9. d4 {[%clk 0:01:34.7]} 9... e4 {[%clk 0:02:58.8]}
10. Nd2 {[%clk 0:01:34.4]} 10... Ne7 {[%clk 0:02:56.5]} 11. d5 {[%clk
0:01:32.9]} 11... c5 {[%clk 0:02:51.9]} 12. dxc6 {[%clk 0:01:32.6]} 12... bxc6
{[%clk 0:02:50.3]} 13. b4 {[%clk 0:01:30.1]} 13... Be6 {[%clk 0:02:49.7]} 14. b5
{[%clk 0:01:23.3]} 14... c5 {[%clk 0:02:45.7]} 15. f3 {[%clk 0:01:13.4]} 15...
exf3 {[%clk 0:02:42.3]} 16. Bxf3 {[%clk 0:01:12.2]} 16... Rb8 {[%clk 0:02:38]}
17. e4 {[%clk 0:00:54.2]} 17... fxe4 {[%clk 0:02:36.7]} 18. Ncxe4 {[%clk
0:00:53.1]} 18... Nxe4 {[%clk 0:02:32.1]} 19. Bxg7 {[%clk 0:00:53.5]} 19... Kxg7
{[%clk 0:02:10.8]} 20. Bxe4 {[%clk 0:00:43.8]} 20... d5 {[%clk 0:02:10.9]} 21.
Rxf8 {[%clk 0:00:37.6]} 21... Qxf8 {[%clk 0:02:09.3]} 22. cxd5 {[%clk
0:00:36.2]} 22... Nxd5 {[%clk 0:02:08.6]} 23. Nf3 {[%clk 0:00:16.4]} 23... Rd8
{[%clk 0:02:05.3]} 24. Qc2 {[%clk 0:00:13.7]} 24... Qf6 {[%clk 0:01:55.9]} 25.
Re1 {[%clk 0:00:11.5]} 25... Nc3 {[%clk 0:01:44.8]} 26. Bc6 {[%clk 0:00:10]}
26... Bf5 {[%clk 0:01:35.5]} 27. Qb3 {[%clk 0:00:09.1]} 27... Bg4 {[%clk
0:01:03.1]} 28. Qa3 {[%clk 0:00:08.7]} 28... Kh6 {[%clk 0:00:56.9]} 29. Qxa7
{[%clk 0:00:08.2]} 29... Bxf3 {[%clk 0:00:54.9]} 30. Bxf3 {[%clk 0:00:09.1]}
30... Qd4+ {[%clk 0:00:55.2]} 31. Kh1 {[%clk 0:00:08.6]} 31... Qf2 {[%clk
0:00:51.9]} 32. Rg1 {[%clk 0:00:08.3]} 32... Re8 {[%clk 0:00:42.8]} 33. Qd7
{[%clk 0:00:08.1]} 33... Re1 {[%clk 0:00:39]} 34. Qh3+ {[%clk 0:00:08.5]} 34...
Kg5 {[%clk 0:00:27.7]} 35. Qg4+ {[%clk 0:00:08.3]} 35... Kf6 {[%clk 0:00:27.9]}
36. Qf4+ {[%clk 0:00:08.8]} 36... Kg7 {[%clk 0:00:20.4]} 37. Qc7+ {[%clk
0:00:08.2]} 37... Kf8 {[%clk 0:00:18.8]} 38. Qc8+ {[%clk 0:00:07.8]} 38... Ke7
{[%clk 0:00:16.3]} 39. Qc7+ {[%clk 0:00:07.7]} 39... Kf6 {[%clk 0:00:15.8]} 40.
Qd6+ {[%clk 0:00:07.4]} 40... Kg5 {[%clk 0:00:14.8]} 41. Qg3+ {[%clk 0:00:06.5]}
41... Qxg3 {[%clk 0:00:14.4]} 42. hxg3 {[%clk 0:00:07.4]} 42... Rxg1+ {[%clk
0:00:15]} 43. Kxg1 {[%clk 0:00:07.2]} 43... Nxb5 {[%clk 0:00:15.6]} 44. a4
{[%clk 0:00:07.2]} 44... Na7 {[%clk 0:00:09.9]} 45. a5 {[%clk 0:00:07.2]} 45...
Kf6 {[%clk 0:00:10]} 46. Kf2 {[%clk 0:00:07.6]} 46... Ke5 {[%clk 0:00:10.3]} 47.
Ke3 {[%clk 0:00:08.1]} 47... c4 {[%clk 0:00:09]} 48. a6 {[%clk 0:00:07.1]} 48...
h6 {[%clk 0:00:07.7]} 49. g4 {[%clk 0:00:07]} 49... g5 {[%clk 0:00:07.3]} 50. g3
{[%clk 0:00:06.9]} 50... c3 {[%clk 0:00:06.6]} 51. Kd3 {[%clk 0:00:06.8]} 51...
Nb5 {[%clk 0:00:05.9]} 52. Bc6 {[%clk 0:00:05.2]} 52... c2 {[%clk 0:00:04.8]}
53. Kxc2 {[%clk 0:00:04.5]} 53... Nd4+ {[%clk 0:00:05]} 54. Kc3 {[%clk
0:00:04.1]} 54... Nxc6 {[%clk 0:00:05.9]} 55. Kc4 {[%clk 0:00:04.5]} 55... Kd6
{[%clk 0:00:06.1]} 56. Kb5 {[%clk 0:00:04.9]} 56... Kc7 {[%clk 0:00:05.9]} 57.
Kc5 {[%clk 0:00:05.4]} 57... Ne5 {[%clk 0:00:05.9]} 58. Kd5 {[%clk 0:00:05.6]}
58... Nxg4 {[%clk 0:00:06.1]} 59. Ke6 {[%clk 0:00:05.9]} 59... Ne3 {[%clk
0:00:05.1]} 60. Kf6 {[%clk 0:00:04.8]} 60... Nf1 {[%clk 0:00:04.7]} 61. g4
{[%clk 0:00:04.6]} 61... Ne3 {[%clk 0:00:04.9]} 62. Kg6 {[%clk 0:00:04.8]} 62...
Nxg4 {[%clk 0:00:05.2]} 63. Kh5 {[%clk 0:00:04.8]} 63... Nf6+ {[%clk 0:00:05.1]}
64. Kg6 {[%clk 0:00:04.4]} 64... g4 {[%clk 0:00:05.2]} 65. a7 {[%clk 0:00:05.3]}
65... Kb7 {[%clk 0:00:05]} 66. Kxf6 {[%clk 0:00:04.6]} 66... g3 {[%clk
0:00:04.9]} 67. Kf7 {[%clk 0:00:04.6]} 67... g2 {[%clk 0:00:05.1]} 68. Kg8
{[%clk 0:00:05.5]} 68... g1=Q+ {[%clk 0:00:04.9]} 69. Kh8 {[%clk 0:00:06.4]}
69... Kxa7 {[%clk 0:00:03.4]} 70. Kh7 {[%clk 0:00:06.1]} 70... h5 {[%clk
0:00:03.5]} 71. Kh8 {[%clk 0:00:07]} 71... h4 {[%clk 0:00:04.4]} 72. Kh7 {[%clk
0:00:07.9]} 72... h3 {[%clk 0:00:05.3]} 73. Kh8 {[%clk 0:00:08.8]} 73... h2
{[%clk 0:00:06.2]} 74. Kh7 {[%clk 0:00:09.7]} 74... h1=Q# {[%clk 0:00:05.6]} 0-1

[Event "*** SCC Grand Prix: Titled Tuesday Blitz"]
[Site "Chess.com"]
[Date "2020.06.02"]
[Round "8"]
[White "AverageRecord"]
[Black "Gloomy_Wanderer"]
[Result "0-1"]
[WhiteElo "2992"]
[BlackElo "2796"]
[TimeControl "180+1"]
[EndTime "11:38:28 PDT"]
[Termination "Gloomy_Wanderer won by checkmate"]

1. d4 {[%clk 0:03:00.9]} 1... Nf6 {[%clk 0:02:57.3]} 2. Nf3 {[%clk 0:03:00.8]}
2... e6 {[%clk 0:02:56.2]} 3. Bf4 {[%clk 0:03:00.4]} 3... b6 {[%clk 0:02:52.3]}
4. e3 {[%clk 0:02:59.8]} 4... Be7 {[%clk 0:02:52.1]} 5. h3 {[%clk 0:02:58.9]}
5... O-O {[%clk 0:02:52]} 6. Nbd2 {[%clk 0:02:59]} 6... c5 {[%clk 0:02:52.2]} 7.
c3 {[%clk 0:02:59.3]} 7... cxd4 {[%clk 0:02:49.9]} 8. cxd4 {[%clk 0:03:00.2]}
8... Bb7 {[%clk 0:02:47.1]} 9. Rc1 {[%clk 0:02:59.4]} 9... Nc6 {[%clk
0:02:46.4]} 10. Be2 {[%clk 0:02:59.1]} 10... Rc8 {[%clk 0:02:45.8]} 11. O-O
{[%clk 0:02:58.8]} 11... Na5 {[%clk 0:02:11.5]} 12. a3 {[%clk 0:02:55.4]} 12...
Rxc1 {[%clk 0:02:07]} 13. Qxc1 {[%clk 0:02:55.3]} 13... Qa8 {[%clk 0:02:07.5]}
14. b4 {[%clk 0:02:53.8]} 14... Rc8 {[%clk 0:02:07.5]} 15. Qb2 {[%clk
0:02:52.6]} 15... Nc6 {[%clk 0:02:07.6]} 16. Rc1 {[%clk 0:02:52.5]} 16... Nd8
{[%clk 0:02:06.5]} 17. Nc4 {[%clk 0:02:45.6]} 17... Ne4 {[%clk 0:01:53.5]} 18.
Ne1 {[%clk 0:02:20.2]} 18... d5 {[%clk 0:01:41.1]} 19. Ne5 {[%clk 0:02:19.9]}
19... f6 {[%clk 0:01:36.2]} 20. N5f3 {[%clk 0:02:10]} 20... Nf7 {[%clk
0:01:32.1]} 21. Bb5 {[%clk 0:01:52.7]} 21... Rxc1 {[%clk 0:01:22.3]} 22. Qxc1
{[%clk 0:01:53.6]} 22... Qc8 {[%clk 0:01:22.8]} 23. Qxc8+ {[%clk 0:01:35.7]}
23... Bxc8 {[%clk 0:01:23.7]} 24. Bb8 {[%clk 0:01:35.1]} 24... a6 {[%clk
0:01:24]} 25. Bd3 {[%clk 0:01:31.2]} 25... Bd6 {[%clk 0:01:23.4]} 26. Bxd6
{[%clk 0:01:15.5]} 26... Nfxd6 {[%clk 0:01:23.3]} 27. Kf1 {[%clk 0:01:14.8]}
27... g5 {[%clk 0:01:15]} 28. Ke2 {[%clk 0:01:08.4]} 28... h6 {[%clk 0:01:14.8]}
29. Bxe4 {[%clk 0:01:08.2]} 29... Nxe4 {[%clk 0:01:11.9]} 30. Nd2 {[%clk
0:01:09.1]} 30... Nd6 {[%clk 0:01:11.1]} 31. f3 {[%clk 0:01:05.3]} 31... Bd7
{[%clk 0:01:10]} 32. e4 {[%clk 0:01:05.6]} 32... Kf7 {[%clk 0:01:09.8]} 33. Ke3
{[%clk 0:01:02.3]} 33... Bb5 {[%clk 0:01:01.2]} 34. Nc2 {[%clk 0:01:00.5]} 34...
Ba4 {[%clk 0:00:59.7]} 35. Ne1 {[%clk 0:00:58.7]} 35... Bb5 {[%clk 0:01:00.1]}
36. e5 {[%clk 0:00:59]} 36... Nf5+ {[%clk 0:00:59.4]} 37. Kf2 {[%clk 0:00:58.2]}
37... Nxd4 {[%clk 0:00:59.8]} 38. exf6 {[%clk 0:00:55.9]} 38... Kxf6 {[%clk
0:01:00.7]} 39. g3 {[%clk 0:00:52.6]} 39... e5 {[%clk 0:01:00]} 40. Ng2 {[%clk
0:00:51.7]} 40... Nf5 {[%clk 0:00:52.5]} 41. Nb1 {[%clk 0:00:48]} 41... Bc6
{[%clk 0:00:47.7]} 42. Nd2 {[%clk 0:00:47.6]} 42... d4 {[%clk 0:00:40.3]} 43.
Ne1 {[%clk 0:00:46.4]} 43... Nd6 {[%clk 0:00:38.1]} 44. Nd3 {[%clk 0:00:42.5]}
44... e4 {[%clk 0:00:37.8]} 45. fxe4 {[%clk 0:00:39.9]} 45... Nxe4+ {[%clk
0:00:38.1]} 46. Nxe4+ {[%clk 0:00:40]} 46... Bxe4 {[%clk 0:00:39]} 47. Nb2
{[%clk 0:00:40.6]} 47... Bd5 {[%clk 0:00:32.7]} 48. Nd3 {[%clk 0:00:40.1]} 48...
Kf5 {[%clk 0:00:29.5]} 49. Ne1 {[%clk 0:00:34.3]} 49... Ke4 {[%clk 0:00:27.7]}
50. Ke2 {[%clk 0:00:33.9]} 50... Be6 {[%clk 0:00:24.2]} 51. h4 {[%clk
0:00:32.9]} 51... gxh4 {[%clk 0:00:24.4]} 52. gxh4 {[%clk 0:00:33.8]} 52... Bf5
{[%clk 0:00:24.7]} 53. Kd2 {[%clk 0:00:26]} 53... Kf4 {[%clk 0:00:24.8]} 54. a4
{[%clk 0:00:26]} 54... a5 {[%clk 0:00:23.7]} 55. bxa5 {[%clk 0:00:25.3]} 55...
bxa5 {[%clk 0:00:23.7]} 56. Ke2 {[%clk 0:00:23.7]} 56... Ke5 {[%clk 0:00:17.3]}
57. Kd2 {[%clk 0:00:22]} 57... Bd7 {[%clk 0:00:15.5]} 58. Nd3+ {[%clk
0:00:21.6]} 58... Kd5 {[%clk 0:00:15.9]} 59. Nb2 {[%clk 0:00:20.7]} 59... Be8
{[%clk 0:00:14.9]} 60. Kd3 {[%clk 0:00:20.5]} 60... Bg6+ {[%clk 0:00:15]} 61.
Kd2 {[%clk 0:00:20.7]} 61... Kc5 {[%clk 0:00:15.4]} 62. Nd1 {[%clk 0:00:20.5]}
62... Kb4 {[%clk 0:00:15.1]} 63. Nf2 {[%clk 0:00:20.9]} 63... Kxa4 {[%clk
0:00:13.4]} 64. Ng4 {[%clk 0:00:21.2]} 64... h5 {[%clk 0:00:13.4]} 65. Ne5
{[%clk 0:00:21.4]} 65... Be4 {[%clk 0:00:13.7]} 66. Nf7 {[%clk 0:00:18.5]} 66...
Kb4 {[%clk 0:00:13]} 67. Ng5 {[%clk 0:00:18.8]} 67... Bf5 {[%clk 0:00:12.5]} 68.
Nf3 {[%clk 0:00:18.9]} 68... Kc5 {[%clk 0:00:12.5]} 69. Kc1 {[%clk 0:00:17.7]}
69... a4 {[%clk 0:00:12.2]} 70. Kb2 {[%clk 0:00:18.6]} 70... Bg4 {[%clk
0:00:11.1]} 71. Ne5 {[%clk 0:00:18.6]} 71... Kd5 {[%clk 0:00:11.1]} 72. Nd3
{[%clk 0:00:18.9]} 72... Bd1 {[%clk 0:00:09.1]} 73. Kc1 {[%clk 0:00:18.6]} 73...
Bb3 {[%clk 0:00:09.1]} 74. Kb2 {[%clk 0:00:18.7]} 74... Ke4 {[%clk 0:00:09]} 75.
Nc5+ {[%clk 0:00:19]} 75... Ke3 {[%clk 0:00:09.5]} 76. Nd7 {[%clk 0:00:17.4]}
76... d3 {[%clk 0:00:09.4]} 77. Nf6 {[%clk 0:00:16.3]} 77... d2 {[%clk 0:00:09]}
78. Nxh5 {[%clk 0:00:16.6]} 78... d1=Q {[%clk 0:00:09.1]} 79. Nf6 {[%clk
0:00:16.8]} 79... Qd4+ {[%clk 0:00:09]} 80. Ka3 {[%clk 0:00:17.4]} 80... Qxf6
{[%clk 0:00:09.5]} 81. h5 {[%clk 0:00:17.9]} 81... Qd6+ {[%clk 0:00:09.4]} 82.
Kb2 {[%clk 0:00:17.6]} 82... Qb4 {[%clk 0:00:10]} 83. h6 {[%clk 0:00:17.5]}
83... a3+ {[%clk 0:00:10.5]} 84. Ka1 {[%clk 0:00:17.7]} 84... Qe1# {[%clk
0:00:10]} 0-1

[Event "*** SCC Grand Prix: Titled Tuesday Blitz"]
[Site "Chess.com"]
[Date "2020.06.02"]
[Round "8"]
[White "Titus369"]
[Black "Dmitry_M1"]
[Result "1/2-1/2"]
[WhiteElo "2561"]
[BlackElo "2391"]
[TimeControl "180+1"]
[EndTime "11:38:33 PDT"]
[Termination "Game drawn - insufficient material"]

1. e4 {[%clk 0:03:00.9]} 1... c6 {[%clk 0:02:59.4]} 2. d4 {[%clk 0:02:55.9]}
2... d5 {[%clk 0:02:59.8]} 3. Nd2 {[%clk 0:02:54.9]} 3... dxe4 {[%clk
0:02:59.5]} 4. Nxe4 {[%clk 0:02:55.8]} 4... Nf6 {[%clk 0:03:00.1]} 5. Nxf6+
{[%clk 0:02:51.2]} 5... exf6 {[%clk 0:03:01]} 6. c3 {[%clk 0:02:50.3]} 6... Bd6
{[%clk 0:03:01.5]} 7. Bd3 {[%clk 0:02:50]} 7... O-O {[%clk 0:03:01.3]} 8. Ne2
{[%clk 0:02:50.6]} 8... Qc7 {[%clk 0:03:00.8]} 9. Be3 {[%clk 0:02:49.8]} 9... c5
{[%clk 0:02:59.4]} 10. Qc2 {[%clk 0:02:42.4]} 10... h6 {[%clk 0:02:59.1]} 11.
O-O-O {[%clk 0:02:41.4]} 11... c4 {[%clk 0:02:57.5]} 12. Bf5 {[%clk 0:02:36.2]}
12... Qa5 {[%clk 0:02:51.7]} 13. Bxc8 {[%clk 0:02:29.4]} 13... Rxc8 {[%clk
0:02:51.6]} 14. Kb1 {[%clk 0:02:29.5]} 14... Qd5 {[%clk 0:02:21.5]} 15. Bf4
{[%clk 0:02:18.1]} 15... Nc6 {[%clk 0:02:16.8]} 16. Bxd6 {[%clk 0:02:06.3]}
16... Qxd6 {[%clk 0:02:17.7]} 17. Ng3 {[%clk 0:02:06.2]} 17... b5 {[%clk
0:02:07.2]} 18. Rhe1 {[%clk 0:01:55.1]} 18... b4 {[%clk 0:02:02.1]} 19. Nf5
{[%clk 0:01:54.9]} 19... Qf8 {[%clk 0:01:34.5]} 20. d5 {[%clk 0:01:48.2]} 20...
b3 {[%clk 0:01:07.6]} 21. axb3 {[%clk 0:01:19.1]} 21... cxb3 {[%clk 0:01:07.5]}
22. Qd2 {[%clk 0:01:14.6]} 22... Qc5 {[%clk 0:00:48.3]} 23. Qf4 {[%clk
0:01:13.8]} 23... Qa5 {[%clk 0:00:29.3]} 24. dxc6 {[%clk 0:01:03]} 24... Qa2+
{[%clk 0:00:27.3]} 25. Kc1 {[%clk 0:01:03.4]} 25... Qa1+ {[%clk 0:00:27.4]} 26.
Kd2 {[%clk 0:01:03.9]} 26... Qxb2+ {[%clk 0:00:27.7]} 27. Ke3 {[%clk 0:01:04.4]}
27... Re8+ {[%clk 0:00:20.6]} 28. Kf3 {[%clk 0:00:58.1]} 28... Qxc3+ {[%clk
0:00:20.2]} 29. Re3 {[%clk 0:00:56.5]} 29... Qxc6+ {[%clk 0:00:18.6]} 30. Kg3
{[%clk 0:00:52.6]} 30... Rxe3+ {[%clk 0:00:17.8]} 31. fxe3 {[%clk 0:00:52.6]}
31... Qb7 {[%clk 0:00:14.1]} 32. Rb1 {[%clk 0:00:44.9]} 32... a5 {[%clk
0:00:13.1]} 33. Qg4 {[%clk 0:00:40.3]} 33... g6 {[%clk 0:00:11.1]} 34. Nxh6+
{[%clk 0:00:40]} 34... Kh7 {[%clk 0:00:11.5]} 35. Qh4 {[%clk 0:00:39.4]} 35...
Kg7 {[%clk 0:00:11.9]} 36. Ng4 {[%clk 0:00:38.1]} 36... Qb6 {[%clk 0:00:06.1]}
37. Qh6+ {[%clk 0:00:34.6]} 37... Kg8 {[%clk 0:00:05.2]} 38. Rxb3 {[%clk
0:00:31.3]} 38... Qd6+ {[%clk 0:00:04.9]} 39. Kh3 {[%clk 0:00:21.5]} 39... f5
{[%clk 0:00:05.3]} 40. Qf4 {[%clk 0:00:11.1]} 40... fxg4+ {[%clk 0:00:04.2]} 41.
Qxg4 {[%clk 0:00:08.9]} 41... Kg7 {[%clk 0:00:04.5]} 42. Qd4+ {[%clk 0:00:09]}
42... Qxd4 {[%clk 0:00:04.4]} 43. exd4 {[%clk 0:00:09.9]} 43... Rd8 {[%clk
0:00:04.6]} 44. Ra3 {[%clk 0:00:09.8]} 44... Rxd4 {[%clk 0:00:04.2]} 45. Rxa5
{[%clk 0:00:09.9]} 45... Rb4 {[%clk 0:00:04.4]} 46. g3 {[%clk 0:00:10]} 46...
Rc4 {[%clk 0:00:04.7]} 47. Ra1 {[%clk 0:00:10.5]} 47... Rb4 {[%clk 0:00:05.1]}
48. Ra2 {[%clk 0:00:10.8]} 48... Rc4 {[%clk 0:00:05.6]} 49. Kg2 {[%clk
0:00:11.7]} 49... Rb4 {[%clk 0:00:06]} 50. Rc2 {[%clk 0:00:12.3]} 50... Ra4
{[%clk 0:00:06]} 51. h4 {[%clk 0:00:12.9]} 51... Rb4 {[%clk 0:00:06.2]} 52. Kh3
{[%clk 0:00:13.5]} 52... Ra4 {[%clk 0:00:06.3]} 53. Rc3 {[%clk 0:00:14.1]} 53...
Rb4 {[%clk 0:00:06.6]} 54. Rf3 {[%clk 0:00:15]} 54... Ra4 {[%clk 0:00:06.9]} 55.
Rb3 {[%clk 0:00:15.6]} 55... Rc4 {[%clk 0:00:06.9]} 56. Rb7 {[%clk 0:00:16]}
56... Rd4 {[%clk 0:00:07]} 57. Rc7 {[%clk 0:00:16.2]} 57... Rb4 {[%clk
0:00:07.1]} 58. Rc5 {[%clk 0:00:16]} 58... Ra4 {[%clk 0:00:07.4]} 59. h5 {[%clk
0:00:16.6]} 59... gxh5 {[%clk 0:00:06.9]} 60. Rxh5 {[%clk 0:00:17.5]} 60... Rb4
{[%clk 0:00:07.2]} 61. Ra5 {[%clk 0:00:17.6]} 61... Rc4 {[%clk 0:00:06.9]} 62.
Ra6 {[%clk 0:00:18]} 62... Rb4 {[%clk 0:00:07.2]} 63. g4 {[%clk 0:00:18.4]}
63... Rc4 {[%clk 0:00:07.2]} 64. Ra5 {[%clk 0:00:17.4]} 64... Rc6 {[%clk
0:00:06.6]} 65. Kh4 {[%clk 0:00:17.6]} 65... Re6 {[%clk 0:00:06.5]} 66. Kg5
{[%clk 0:00:17.8]} 66... Rd6 {[%clk 0:00:06.7]} 67. Kf4 {[%clk 0:00:18.1]} 67...
Re6 {[%clk 0:00:06.8]} 68. Rg5+ {[%clk 0:00:18.4]} 68... Rg6 {[%clk 0:00:05]}
69. Rh5 {[%clk 0:00:15.7]} 69... Rf6+ {[%clk 0:00:04.9]} 70. Kg3 {[%clk
0:00:15.5]} 70... Re6 {[%clk 0:00:04.5]} 71. Rc5 {[%clk 0:00:13.8]} 71... Rd6
{[%clk 0:00:04.7]} 72. Kf3 {[%clk 0:00:13.3]} 72... Re6 {[%clk 0:00:05.1]} 73.
Kf4 {[%clk 0:00:13.4]} 73... Rf6+ {[%clk 0:00:05.3]} 74. Ke4 {[%clk 0:00:13.3]}
74... Re6+ {[%clk 0:00:05.4]} 75. Kf4 {[%clk 0:00:11.8]} 75... Rf6+ {[%clk
0:00:05.6]} 76. Rf5 {[%clk 0:00:12.7]} 76... Rxf5+ {[%clk 0:00:05.5]} 77. Kxf5
{[%clk 0:00:13.6]} 77... Kf8 {[%clk 0:00:04.4]} 78. Kf6 {[%clk 0:00:13.3]} 78...
Kg8 {[%clk 0:00:04.5]} 79. g5 {[%clk 0:00:12.7]} 79... Kf8 {[%clk 0:00:04.7]}
80. Ke5 {[%clk 0:00:13.6]} 80... Kg7 {[%clk 0:00:04.8]} 81. Kf5 {[%clk
0:00:14.5]} 81... Kg8 {[%clk 0:00:05]} 82. Kf6 {[%clk 0:00:15.4]} 82... Kf8
{[%clk 0:00:05.3]} 83. g6 {[%clk 0:00:16.3]} 83... fxg6 {[%clk 0:00:05.2]} 84.
Kxg6 {[%clk 0:00:16.2]} 1/2-1/2